Workbook

Sheet Application Form
H3: The Department of Trade and Industry
H5: SOUTH AFRICAN EMERGING BLACK PRODUCTION INCENTIVE
H8: APPLICATION FORM
AC9: No | AD9: Level 1 | AE9: Dr. | AF9: Gauteng | AG9: Foreign Incentive | AH9: African | AI9: Male | AJ9: Complete
AC10: Yes | AD10: Level 2 | AE10: Mr. | AF10: Limpopo | AG10: South African | AH10: White | AI10: Female | AJ10: In-process
AD11: Level 3 | AE11: Mrs. | AF11: Free State | AG11: Co-Production | AH11: Coloured | AJ11: In-complete
C12: Private Address: | J12: Address: | S12: Web Address: www.thedti.gov.za | AD12: Level 4 | AE12: Ms. | AF12: Eastern Cape | AG12: Emerging Black | AH12: Indian
S13: Customer Contact Centre: 0861843384 / +27 (0)12 394 9500 | AE13: Prof. | AF13: KwaZulu Natal | AG13: Other
C14: Private Bag X87 | J14: 1 Robert Sobukwe (Esselen) Street (Ground Floor) | AF14: North West
C15: the dti Campus | J15: Shared Service Centre | AC15: Digital content | AD15: Loan | AF15: Mpumalanga
C16: Sunnyside,Pretoria | J16: Sunnyside,Pretoria | S16: Email Address: Film&TVApplication@thedti.gov.za | AC16: Feature film | AD16: Equity | AF16: Western Cape
C17: 0002 | J17: 0002 | AC17: Mini / TV Series | AD17: Donation | AF17: Northern Cape
AC18: Telemovie | AD18: Grant/Incentive
AC19: Animation
AC20: Documentary
C21: SECTION A | K21: APPLICANT DETAILS
AC23: Anticipated | AD23: Government Institution | AE23: Incentive
C24: Full Registered SPCV Name: | I24: INSILA KASHAKA (PTY) LTD | AC24: Secured | AD24: State-owned entity/agencies | AE24: Grant Finance
AD25: Financial Institutions | AE25: Equity Finance
AD26: Non Profit Organisation | AE26: Loan Finance
C27: Registration No: | I27: 2019/081808/07 | AD27: Private entity | AE27: Venture Capital
AD28: Private Investor | AE28: Crowd Funding
AE29: Tax Rebate/ Reduction
C30: *B-BBEE Level: | F30: Level 1 | L30: Date Issued: | O30: 15/02/2019 | U30: dd-mmm-yyyyy | AE30: Other
C33: Designation (i.e Director)
C34: Title | H34: Ms.
C37: Name of contact person: | I37: SIBONGILE NENE
C39: E-mail: | H39: sibongile@insilakashaka.com
C41: Fax: | H41: none | U41: e.g. +(0)12 394 1234
C43: Mobile: | H43: +27 65 947 9866 | U43: e.g. +(0)83 394 1234
C45: Work: | H45: +27 65 947 1499 | U45: e.g. +(0)12 394 1234
C48: Name of at least one(1) South African citizern company director with an active role in the production: | P48: TSHEPO MOVUNDLELA
C51: Name: | H51: TSHEPO MOVUNDLELA | O51: Name: | T51: JOASH MOONSAMY
C53: Address: | H53: 662 FRANCIS BAARD STREET | O53: Address: | T53: 45 FIELDSIDE AVENUE
C55: Suburb: | H55: ACADIA | O55: Suburb: | T55: PHOENIX
C57: Province: | H57: GAUTENG | O57: Province: | T57: KwaZulu Natal
C59: City/Town: | H59: PRETORIA | O59: City/Town: | T59: DURBAN
C61: Postal Code: | J61: 0002 | O61: Postal Code: | V61: 4068
C64: Nationality: | H64: SOUTH AFRICAN | O64: Nationality: | T64: SOUTH AFRICAN
C67: SECTION B | K67: SERVICE COMPANY INFORMATION
C70: *Service Company Name: | I70: WORMWOOD PICTURES AND ENTERTAINMENT
C73: *Company Registration Number: | I73: 2014/182416/07
C76: Registered address | N76: *B-BBEE Level: | Q76: Level 1
C77: Address: | H77: 510 DT RAMPOLA STREET
C79: Suburb: | H79: MAHWERELENG
C81: Province: | H81: Gauteng
C83: City/Town: | H83: LIMPOPO
C85: Postal Code: | J85: 0626
C88: Shareholders
C89: Shareholder Names | I89: ID Number | N89: Country | S89: Race | V89: Gender | X89: %
C91: TSHEPHO MOVUNDLELA | I91: 9208215830084 | N91: SOUTH AFRICA | S91: African | V91: Female | X91: 1
C105: Total Individual Shares | X105: =SUM(X91:Y104) -> 1
Y108: Page 1
H113: The Department of Trade and Industry
H115: SOUTH AFRICAN EMERGING BLACK PRODUCTION INCENTIVE
H118: APPLICATION FORM
C122: Private Address: | J122: Address: | S122: Web Address: www.thedti.gov.za
S123: Customer Contact Centre: 0861843384 / +27 (0)12 394 9500
C124: Private Bag X87 | J124: 1 Robert Sobukwe (Esselen) Street (Ground Floor)
C125: the dti Campus | J125: Shared Service Centre
C126: Sunnyside,Pretoria | J126: Sunnyside,Pretoria | S126: Email Address: Film&TVApplication@thedti.gov.za
C127: 0002 | J127: 0002
C131: Previous Approvals by the dti (Attach list for additional approvals if space provided below is not enough)
C133: Production Name | G133: Amount Approved | J133: Amount Claim | M133: Incentive type | P133: Production Status | T133: Reason for non-completion
C135: N/A
C148: PRODUCTION AND POST-PRODUCTION DETAILS
C151: Title of production: | I151: INSILA KASHAKA
C154: Copyright Holder: | I154: INSILA KASHAKA
C157: Synopsis (in one paragraph):
C159: JEQE is on a mission to find King Shaka's HEIR. Upon the assassination of king Shaka by his brother Dingane, Jeqe must avoid his own customary execution to accompany the king in the afterlife and seek refuge in Thongaland, where he falls in love with Zakhi, the most desired maiden for many lands. The Thonga prince, who wants Zakhi will have Jeqe killed before allowing him to take her hand in marriage. Jeqe is rescued by a Sangoma, who takes him to her island and teaches him the art of medicine. Jeqe becomes so good at medicinee that back kwaZulu , they hear of his miracles and Dingane invites him to his ISigodlo, not knowing it is Jeqe. Will Jeqe surrender and seek to revenge his king or will he survive to find Shaka's rightful heir?
C169: Type of qualifying format applied for: | H169: Feature film | O169: Duration of each episode or Feature (minutes): | T169: 90 MINS
C171: Number of epiodes: | H171: n/a | O171: Genre: | T171: PERIOD DRAMA ADVENTURE
C174: Total running minutes: | H174: 90 MINUTES
C177: Production Dates
C178: Commencement of Photography: | K178: 2019-05-30 | P178: e.g. 1 Jan 2010
C180: Completion of Photography: | K180: 2019-07-20 | P180: e.g. 1 Jan 2010
C182: Completion of Production: | K182: 2019-09-15 | P182: e.g. 1 Jan 2010
C185: Total shooting days for the productions (calender days): | K185: 45 | O185: SA principal photography percentage (%): | W185: =SUM(K187/K185) -> 1
C187: Total shooting in South Africa (calender days): | K187: 45
C190: Detailed South African Production and Post-Production Shooting Schedule
C192: From: | G192: To: | K192: Calender days | P192: Province | U192: City/ Location
C194: 2019-05-30 | G194: 2019-07-30 | K194: 45 | P194: KwaZulu Natal | U194: NOYIPHIVA AREA, Empangeni
Y218: Page 2
H223: The Department of Trade and Industry
H225: SOUTH AFRICAN EMERGING BLACK PRODUCTION INCENTIVE
H228: APPLICATION FORM
C232: Private Address: | J232: Address: | S232: Web Address: www.thedti.gov.za
S233: Customer Contact Centre: 0861843384 / +27 (0)12 394 9500
C234: Private Bag X87 | J234: 1 Robert Sobukwe (Esselen) Street (Ground Floor)
C235: the dti Campus | J235: Shared Service Centre
C236: Sunnyside,Pretoria | J236: Sunnyside,Pretoria | S236: Email Address: Film&TVApplication@thedti.gov.za
C237: 0002 | J237: 0002
C241: SECTION C | K241: PROJECT INFORMATION
C244: Purchase of Key Production Equipment
C247: Commencement of Photography: | K247: 2019-05-30
C249: Brief description and purpose of the equipment during the production | K249: Equipment to watch daily footage shot, store data of footage shot, photograph behind the scenes, store transfer footage from camera to hard drives, record sound
C255: Cost of proposed equipment | K255: 0
C257: Cost-sharing grant contibution | K257: 0
C259: Possible sources of funding and ability to secure the remaining cost-sharing amount | K259: 0
C266: Provide details of all companies (as identified in the budget) who will provide good and services during production and/or post production that are connected with the production company or any of its associate companies. Add a separate attachment if the space in the table is insufficient. If the production and/or post-production has not commenced and the information is not known, indicate it as not applicable.
C272: Name of connected company | I272: Types of goods and/or services | T272: Rand value
C274: N/A
C277: N/A
C280: N/A
C290: Has the production company taken over the responsibility for making the film and/or conducting post-production activities from another production company? | W290: No
C293: If "Yes", list the previous company(ies) and attatch the relevant legal agreement confirming the transfer of responsibility
C295: Name: | H295: N/A | O295: Name: | T295: N/A
C297: Address: | O297: Address:
C299: Suburb: | O299: Suburb:
C301: Province: | O301: Province:
C303: City/Town: | O303: City/Town:
C305: Postal Code: | O305: Postal Code:
C308: Nationality: | O308: Nationality:
Y328: Page 3
H333: The Department of Trade and Industry
H335: SOUTH AFRICAN EMERGING BLACK PRODUCTION INCENTIVE
H338: APPLICATION FORM
C342: Private Address: | J342: Address: | S342: Web Address: www.thedti.gov.za
S343: Customer Contact Centre: 0861843384 / +27 (0)12 394 9500
C344: Private Bag X87 | J344: 1 Robert Sobukwe (Esselen) Street (Ground Floor)
C345: the dti Campus | J345: Shared Service Centre
C346: Sunnyside,Pretoria | J346: Sunnyside,Pretoria | S346: Email Address: Film&TVApplication@thedti.gov.za
C347: 0002 | J347: 0002
C351: PRODUCTION AND/OR POST PRODUCTION FUNDING
C354: Production Name | G354: Name | K354: Secured/ Anticipated | O354: Incentive type | R354: Amount | W354: %
C356: Development Finance Institution | G356: DTI | K356: Anticipated | O356: Grant/Incentive | R356: 750000 | W356: 0.5
C359: South African Banks
C362: South African Private Investors | G362: N/A
C365: Foreign Private Investors | G365: N/A
C368: Pre Sales | G368: N/A
C371: License Fees | G371: N/A
C374: Gap Financing | G374: N/A
C377: PRODUCTION FINANCE INSTITUTION | G377: NFVF | K377: Secured | O377: Grant/Incentive | R377: 150000 | W377: 0.1
C380: PRODUTION FINANCE INSTITUTION | G380: KWAZULU NATAL FILM COMMISSION | K380: Anticipated | O380: Grant/Incentive | R380: 600000 | W380: 0.4
C384: Total | I384: =SUM(R356:V382) -> 1500000 | O384: =SUM(W356:Y382) -> 1
C387: Distibution Agreement
C389: Name of the distributor: | I389: NONE
C392: Signed distribution agreement attached: | L392: If "No" option is selected, a letter of dsitribution or letter of intent to distribute is attached?
C395: Credits
C397: Name of at least one (1) South African citizen company director with an active role in the production: | Q397: WORMWOOD PICTURES ENTERTAINMENT
C400: Broad-Based Black Economic Empowerment (B-BBEE)
C402: Holding / Service company Scorecard Details (If the turnover is more than R10 million, a valid B-BBEE certificate is required) Level 1 to 2
C404: B-BBEE Status: | I404: Level 1
C406: B-BBEE Procurement Recognition Level: | I406: SWORN AFFIDAVITZ
C408: Scorecard issued by: | I408: WORMWOOD PICTURES ENTERTAINMENT
C410: Effective Date: | I410: 2019-01-31 | N410: e.g. 1 Jan 2010
C412: Expiry Date: | I412: 2019-12-31 | N412: e.g. 1 Jan 2010
C415: SPCV Scorecard Details (Certificate of compliance) Level 1 to 2
C417: B-BBEE Status: | I417: Level 1
C419: B-BBEE Procurement Recognition Level: | I419: SWORN AFFIDAVITZ
C421: Scorecard issued by: | I421: INSILA KASHAKA
C423: Effective Date: | I423: 2019-01-31 | N423: e.g. 1 Jan 2010
C425: Expiry Date: | I425: 2020-01-30 | N425: e.g. 1 Jan 2010
C428: Do you wish to make use of milestone method of payment? | P428: No
Y438: Page 4
H443: The Department of Trade and Industry
H445: SOUTH AFRICAN EMERGING BLACK PRODUCTION INCENTIVE
H448: APPLICATION FORM
C452: Private Address: | J452: Address: | S452: Web Address: www.thedti.gov.za
S453: Customer Contact Centre: 0861843384 / +27 (0)12 394 9500
C454: Private Bag X87 | J454: 1 Robert Sobukwe (Esselen) Street (Ground Floor)
C455: the dti Campus | J455: Shared Service Centre
C456: Sunnyside,Pretoria | J456: Sunnyside,Pretoria | S456: Email Address: Film&TVApplication@thedti.gov.za
C457: 0002 | J457: 0002
C461: OTHER REBATES AND INCENTIVES
C464: Indicate if the entity has received any other government /state owned, incentives, internship and training funding in South Africa.
O466: Period (dd-mmm-yyyy)
C468: Name of institution | G468: Type of institution | K468: Support type | O468: From | R468: To | V468: Amount
C470: N/A
C500: ADDITIONAL DOCUMENTS REQUIRED
C504: Description of document | W504: Attached
C506: Summary and detailed budget in SA Rand | W506: YES
C508: Legal agreement confirming the transfer of production completion responsibility (Where applicable) | W508: N/A
C510: Financial plan including letters of intent from investors | W510: YES
C512: Distribution Agreement | W512: N/A
C514: Provisional shooting schedule noting the shooting in SA | W514: YES
C516: Certificate of incorporation of SPCV | W516: YES
C518: Appointment of directors SPCV | W518: YES
C520: Written confirmation that the dti will be credited as prescribed | W520: YES
C522: Trailblazer or short film | W522: YES
C524: Valid B-BBEE Certificate (Level 1 to 2) of service company and scorecard | W524: YES
C526: Valid B-BBEE Certificate (Level 1 to 2) of SPCV and scorecard | W526: YES
C528: Chain of title where applicable. | W528: N/A
C530: Letter confirming adhearance to an industry specific Code of Professional Standards that includes sexual harassment and health and safety protocols. | W530: YES
C533: Holding Companies Sworn Affidavit must be accompanied by audited financial statements for entities that have operated for more than three consecutive years. | W533: N/A
C536: Stamped bank account confirmation letter | W536: YES
C538: Credit of the company director to be included in the credit list of the production | W538: YES
C540: Shareholders Certificates of SPCV and Hoding Company | W540: YES
C542: Letter indicating proof of 10% secured | W542: YES
C544: Copyright certificate of registration from CIPC | W544: YES
Y548: Page 5
H553: The Department of Trade and Industry
H555: SOUTH AFRICAN EMERGING BLACK PRODUCTION INCENTIVE
H558: APPLICATION FORM
C562: Private Address: | J562: Address: | S562: Web Address: www.thedti.gov.za
S563: Customer Contact Centre: 0861843384 / +27 (0)12 394 9500
C564: Private Bag X87 | J564: 1 Robert Sobukwe (Esselen) Street (Ground Floor)
C565: the dti Campus | J565: Shared Service Centre
C566: Sunnyside,Pretoria | J566: Sunnyside,Pretoria | S566: Email Address: Film&TVApplication@thedti.gov.za
C567: 0002 | J567: 0002
... 15 more rows

Sheet Finance Plan
C2: INSILA KASHAKA
C3: LENGTH: 90 MINS
C5: FEATURE
C6: GENRE | D6: Period Drama
C9: FINANCE PLAN
F10: BUDGET | G10: TOTAL | H10: 1500
A12: NFVF | F12: SECURED | H12: -150000
A13: KWAZULU NATAL FILM COMMISSION | F13: ANTICIPATED | H13: 898500
A14: DTI | F14: ANTICIPATED | H14: -750000
G15: TOTAL | H15: =SUM(H10:H14) -> 0

Sheet Budget
C4: DTI template | E4: KwaGcongco Reserve
C5: Zulu Heritage Films | E5: Ward 3
C6: REG: 2015/360548/07 | E6: Melmoth, 3835, KZN
C7: INSILA KASHAKA - 49 MIN. MINI SERIES | E7: MOBILE: 0724871499
B8: Total | C8: =C15+C48+C61+C62+C63+C64 -> 5000200 | D8: 5000200 | E8: 5000200
A9: No. | B9: Budget Item | C9: Total Production Expenditure | D9: QSAPE in SA procured from 51% South African Black-owned entity | E9: Total QSAPE
A10: 1 | B10: Story/Script Dev | C10: 250000 | D10: 250000 | E10: 250000
A11: 2 | B11: Producers | C11: 450000 | D11: 450000 | E11: 450000
A12: 3 | B12: Travel and Living | C12: 140000 | D12: 140000 | E12: 140000
A13: 4 | B13: Direction | C13: 150000 | D13: 150000 | E13: 150000
A14: 5 | B14: Cast & Casting | C14: 260000 | D14: 260000 | E14: 260000
B15: Total Above the Line | C15: =C10+C11+C12+C13+C14 -> 1250000 | D15: =D10+D11+D12+D13+D14 -> 1250000 | E15: =E10+E11+E12+E13+E14 -> 1250000
A16: 6 | B16: Bit Players | C16: 120000 | D16: 120000 | E16: 120000
A17: 7 | B17: Extras | C17: 280000 | D17: 280000 | E17: 280000
A18: 8 | B18: Production Staff | C18: 140000 | D18: 140000 | E18: 140000
A19: 9 | B19: Asst D’s & Continuity | C19: 78000 | D19: 78000 | E19: 78000
A20: 10 | B20: Camera Crew | C20: 190000 | D20: 190000 | E20: 190000
A21: 11 | B21: Camera Equip | C21: 280000 | D21: 280000 | E21: 280000
A22: 12 | B22: Grip Crew | C22: 67000 | D22: 67000 | E22: 67000
A23: 13 | B23: Grip Equip | C23: 59000 | D23: 59000 | E23: 59000
A24: 14 | B24: Lighting Crew | C24: 67000 | D24: 67000 | E24: 67000
A25: 15 | B25: Lighting Equip | C25: 56000 | D25: 56000 | E25: 56000
A26: 16 | B26: Sound Crew & Equip | C26: 67000 | D26: 67000 | E26: 67000
A27: 17 | B27: Art Dept Crew | C27: 160000 | D27: 160000 | E27: 160000
A28: 18 | B28: Art Dept equipment & consumables | C28: 160000 | D28: 160000 | E28: 160000
A29: 19 | B29: Construction | C29: 160000 | D29: 160000 | E29: 160000
A30: 20 | B30: Animals | C30: 25000 | D30: 25000 | E30: 25000
A31: 21 | B31: Armourers & weapons | C31: 56000 | D31: 56000 | E31: 56000
A32: 22 | B32: Stunts | C32: 25000 | D32: 25000 | E32: 25000
A33: 23 | B33: SFX Crew & Equip | C33: 26000 | D33: 26000 | E33: 26000
A34: 24 | B34: Costumes | C34: 90000 | D34: 90000 | E34: 90000
A35: 25 | B35: Makeup & hair | C35: 36000 | D35: 36000 | E35: 36000
A36: 26 | B36: Prosthetics | C36: 12000 | D36: 12000 | E36: 12000
A37: 27 | B37: Second unit | C37: 26000 | D37: 26000 | E37: 26000
A38: 28 | B38: Stock | C38: 35000 | D38: 35000 | E38: 35000
A39: 29 | B39: Archive Footage | C39: 8900 | D39: 8900 | E39: 8900
A40: 30 | B40: Transport & Flights | C40: 48000 | D40: 48000 | E40: 48000
A41: 31 | B41: Location Facilities | C41: 36000 | D41: 36000 | E41: 36000
A42: 32 | B42: Hotel & Living | C42: 78000 | D42: 78000 | E42: 78000
A43: 33 | B43: Film & Lab | C43: 24000 | D43: 24000 | E43: 24000
A44: 34 | B44: SA Production Fee | C44: 2300 | D44: 2300 | E44: 2300
A45: 35 | B45: Prod Office & Facilities | C45: 130000 | D45: 130000 | E45: 130000
A46: 36 | B46: Publicity | C46: 40000 | D46: 40000 | E46: 40000
A47: 37 | B47: Legal, Auditing & Banking | C47: 67000 | D47: 67000 | E47: 67000
B48: Total Below the line | C48: =SUM(C16:C47) -> 2649200 | D48: =SUM(D16:D47) -> 2649200 | E48: =SUM(E16:E47) -> 2649200
A49: 36 | B49: Licence Fees | C49: 19000 | D49: 19000 | E49: 19000
A50: 37 | B50: Artist Fees | C50: 12000 | D50: 12000 | E50: 12000
B51: Offline editing | C51: 68000 | D51: 68000 | E51: 68000
B52: Online | C52: 52000 | D52: 52000 | E52: 52000
A53: 38 | B53: Editorial and sound post-production | C53: 15000 | D53: 15000 | E53: 15000
A54: 39 | B54: Grading | C54: 18000 | D54: 18000 | E54: 18000
A55: 40 | B55: Post Production facilities and personnel | C55: 84000 | D55: 84000 | E55: 84000
B56: Graphics | C56: 36000 | D56: 36000 | E56: 36000
A57: 41 | B57: Editing suites | C57: 35000 | D57: 35000 | E57: 35000
A58: 42 | B58: Sound studios/ mix | C58: 76000 | D58: 76000 | E58: 76000
A59: 43 | B59: Roto/ VFX outsource work | C59: 38000 | D59: 38000 | E59: 38000
A60: 44 | B60: Outsourced animation services | C60: 89000 | D60: 89000 | E60: 89000
B61: Total Post Production | C61: =SUM(C49:C60) -> 542000 | D61: =SUM(D49:D60) -> 542000 | E61: =SUM(E49:E60) -> 542000
A62: 45 | B62: Insurances | C62: 19000 | D62: 19000 | E62: 19000
A63: 46 | B63: Contingency+ Other | C63: 90000 | D63: 90000 | E63: 90000
A64: 47 | B64: Completion Bond | C64: 450000 | D64: 450000 | E64: 450000
B70: FINANCE PLAN
B72: KZN FILM COMMISSION | C72: 1500000 | D72: ANTICIPATED | E72: 0.288461
B73: DTI | C73: 2600000 | D73: ANTICIPATED | E73: 0.5
B74: NORWEGIAN FUND | C74: 700000 | D74: ANTICIPATED | E74: 0.13461
B75: NFVF | C75: 150000 | D75: SECURED | E75: 0.02884
B76: DURBAN FILM OFFICE | C76: 250000 | D76: SECURED | E76: 0.04897
C77: =SUM(C72:C76) -> 5200000 | E77: =SUM(E72:E76) -> 1.000881

Sheet Employment
A1: QUALIFYING SOUTH AFRICAN PRODUCTION EMPLOYMENT
X2: yes
B3: Number of jobs created | X3: no
B5: African | D5: White | F5: Coloured | H5: Indian | J5: Total | L5: Youth | O5: Disabled
B7: Male | C7: Female | D7: Male | E7: Female | F7: Male | G7: Female | H7: Male | I7: Female | J7: Male | K7: Female | L7: Male | M7: Female | N7: Total | O7: Male | P7: Female | Q7: Total
A8: Special Purpose Vehicle | C8: 1 | J8: =B8+D8+F8+H8 -> 0 | K8: =C8+E8+G8+I8 -> 1
A10: Head of Departments | B10: 3 | C10: 5 | H10: 1 | J10: =B10+D10+F10+H10 -> 4 | K10: 5 | O10: 1 | Q10: 1
A12: Creative Personnel | B12: 3 | C12: 9 | H12: 2 | J12: 5 | K12: 9
A14: Crew | B14: 3 | J14: =B14+D14+F14+H14 -> 3 | K14: =C14+E14+G14+I14 -> 0 | L14: 1 | M14: 4
A16: Cast | J16: =B16+D16+F16+H16 -> 0 | K16: =C16+E16+G16+I16 -> 0
A18: Extras | B18: 50 | C18: 50 | J18: 50 | K18: =C18+E18+G18+I18 -> 50 | L18: 250 | M18: 25
A20: Total | B20: =SUM(B8:B19) -> 59 | C20: 65 | D20: 0 | E20: 0 | F20: 0 | G20: 0 | H20: 3 | I20: 0 | J20: 62 | K20: 65 | L20: 251 | M20: 29 | N20: 0 | O20: 1 | P20: 0 | Q20: 1
B24: Total Hours
B26: African | D26: White | F26: Coloured | H26: Indian | J26: Total | L26: Youth | O26: Disabled
B28: Male | C28: Female | D28: Male | E28: Female | F28: Male | G28: Female | H28: Male | I28: Female | J28: Male | K28: Female | L28: Male | M28: Female | N28: Total | O28: Male | P28: Female | Q28: Total
A29: Special Purpose Vehicle | C29: 720 | J29: =B29+D29+F29+H29 -> 0 | K29: =C29+E29+G29+I29 -> 720 | N29: 0
A31: Head of Departments | B31: 250 | C31: 250 | J31: =B31+D31+F31+H31 -> 250 | K31: 250 | N31: =K31+J31+C31+B31 -> 1000
A33: Creative Personnel | C33: 340 | J33: 0 | K33: 340 | N33: 340 | O33: 500 | Q33: 500
A35: Crew | B35: 540 | J35: =B35+D35+F35+H35 -> 540 | K35: =C35+E35+G35+I35 -> 0 | N35: 45
A37: Cast | B37: 72 | C37: 72 | J37: 72 | K37: 72 | L37: 500 | M37: 130 | N37: =SUM(B37:M37) -> 918
A39: Extras | B39: 36 | C39: 36 | J39: =B39+D39+F39+H39 -> 36 | K39: =C39+E39+G39+I39 -> 36 | L39: 250 | M39: 360 | N39: =M39+L39 -> 610
A41: Total | B41: =SUM(B29:B40) -> 898 | C41: =SUM(C29:C40) -> 1418 | D41: 0 | E41: 0 | F41: 0 | G41: 0 | H41: 0 | I41: 0 | J41: 898 | K41: 1418 | L41: 750 | M41: 490 | N41: 2913 | O41: 500 | P41: 0 | Q41: 500
A46: SOUTH AFRICAN POST PRODUCTION EMPLOYMENT
B48: Number of jobs created
B50: African | D50: White | F50: Coloured | H50: Indian | J50: Total | L50: Youth | O50: Disabled
B52: Male | C52: Female | D52: Male | E52: Female | F52: Male | G52: Female | H52: Male | I52: Female | J52: Male | K52: Female | L52: Male | M52: Female | N52: Total | O52: Male | P52: Female | Q52: Total
A53: Special Purpose Vehicle | C53: 1 | J53: =B53+D53+F53+H53 -> 0 | K53: =C53+E53+G53+I53 -> 1 | N53: 1
A55: Post-production personnel | J55: =B55+D55+F55+H55 -> 0 | K55: =C55+E55+G55+I55 -> 0 | L55: 3 | N55: 3 | O55: 1 | Q55: 1
A57: Total | B57: =SUM(B53:B56) -> 0 | C57: 1 | D57: 0 | E57: 0 | F57: 0 | G57: 0 | H57: 0 | I57: 0 | J57: 0 | K57: 1 | L57: 3 | M57: 0 | N57: 4 | O57: 1 | P57: 0 | Q57: 1
B61: Total Hours
B63: African | D63: White | F63: Coloured | H63: Indian | J63: Total | L63: Youth | O63: Disabled
B65: Male | C65: Female | D65: Male | E65: Female | F65: Male | G65: Female | H65: Male | I65: Female | J65: Male | K65: Female | L65: Male | M65: Female | N65: Total | O65: Male | P65: Female | Q65: Total
A66: Special Purpose Vehicle | C66: 720 | J66: =B66+D66+F66+H66 -> 0 | K66: =C66+E66+G66+I66 -> 720
A68: Post-production personnel | J68: =B68+D68+F68+H68 -> 0 | K68: =C68+E68+G68+I68 -> 0 | L68: 560 | O68: 560
A70: Total | B70: =SUM(B66:B69) -> 0 | C70: 720 | D70: 0 | E70: 0 | F70: 0 | G70: 0 | H70: 0 | I70: 0 | J70: 0 | K70: 720 | L70: 560 | M70: 0 | N70: 0 | O70: 560 | P70: 0 | Q70: 0
A74: * Does the production adhere to minimum wage and legislative requirements governing this sector/ industry? | O74: yes
A76: * Does the production adhere to the industry specific Code of Professional Standards (including sexual harassement and health and safety protocols)? | O76: yes

Sheet BEE Scorecard
A1: B-BBEE Scorecard
A3: Breakdown of the scorecard with relation to the Special Purpose Corporate Vehicle (SPCV) and Service Company:
A4: ELEMENT | B4: DETAILS
A5: Ownership | B5: (Please provide the details with regards to the SPCV, Service Company ownership status as per the table indication below):
A6: SPCV | B6: Shareholder’s Name | H6: Shareholder’s % | M6: Gender | O6: Race | Q6: Youth (i.e. 18yrs to 35yrs) | S6: Disability Status | W6: Citizenship | AA6: Other Citizenships
S7: (i.e. indicate with a yes or no)
A8: INSILA KASHAKA | B8: Sibongile Nene | H8: 1 | M8: FEMALE | O8: AFRICAN | Q8: 0 | S8: 0 | W8: SOUTH AFRICAN | AA8: N/A
A15: Service Company | B15: Shareholder’s Name | H15: Shareholder’s % | M15: Gender | O15: Race | Q15: Youth (i.e. 18yrs to 35yrs) | S15: Disability Status | W15: Citizenship | AA15: Other Citizenships
S16: (i.e. indicate with a yes or no)
A17: HART MEDIA | B17: Joash Moonsamy | H17: 1 | M17: MALE | O17: AFRICAN | Q17: 1 | S17: 0 | W17: SOUTH AFRICAN | AA17: N/A
A24: Management Control (SPCV) | B24: Individual Name | H24: Designation (i.e. producer, assistant director, etc. specifically on this production) | M24: Gender | O24: Race | Q24: Youth (i.e. 18yrs to 35yrs) | S24: Disability Status | W24: Citizenship | AA24: Other Citizenships
S25: (i.e. indicate with a yes or no)
B26: Sibongile Nene | H26: Producer/Writer/Director | M26: FEMALE | O26: AFRICAN | Q26: 0 | S26: 0 | W26: SOUTH AFRICAN | AA26: N/A
W27: SOUTH AFRICAN | AA27: N/A
W28: SOUTH AFRICAN | AA28: N/A
A31: Employment Equity | B31: (Please provide the following information with regards to employees involved in this production):
B34: Individual Name | F34: Main Role in the Production | I34: Other roles in the Production | M34: Gender | O34: Race | Q34: Youth (i.e. 18yrs to 35yrs) | S34: Disability Status | W34: Citizenship | AA34: Salary { (daily rate) at application or claim stage } | AD34: Duration (Days)
S35: (i.e. indicate with a yes or no)
A36: Cast | F36: Shaka | M36: MALE | O36: AFRICAN | Q36: 1 | S36: 0 | W36: SOUTH AFRICAN | Z36: 3500 | AD36: 6 | AG36: =Z36*AD36 -> 21000
F37: Jeqe | M37: MALE | O37: AFRICAN | Q37: 1 | S37: 0 | W37: SOUTH AFRICAN | Z37: 2800 | AD37: 12 | AG37: 33600
B38: Dr. John Kani | F38: Nozitshela | M38: MALE | O38: AFRICAN | Q38: 1 | S38: 1 | W38: SOUTH AFRICAN | Z38: 3500 | AD38: 3 | AG38: 10500
F39: Thonga Prince | M39: MALE | O39: AFRICAN | Q39: 0 | S39: 0 | W39: SOUTH AFRICAN | Z39: 1500 | AD39: 3 | AG39: 4500
F40: Sompisi | M40: MALE | O40: AFRICAN | Q40: 0 | S40: 0 | W40: SOUTH AFRICAN | Z40: 1500 | AD40: 5 | AG40: 7500
F41: Dingane | M41: MALE | O41: AFRICAN | Q41: 1 | S41: 0 | W41: SOUTH AFRICAN | Z41: 3500 | AD41: 3 | AG41: 10500
B42: Talente Nene | F42: Zakhi | M42: FEMALE | O42: AFRICAN | Q42: 1 | S42: 0 | W42: SOUTH AFRICAN | Z42: 1500 | AD42: 9 | AG42: 13500
F43: Shaka's Heir | M43: MALE | O43: AFRICAN | Q43: 1 | S43: 0 | W43: SOUTH AFRICAN | Z43: 1500 | AD43: 3 | AG43: 4500
F44: Heir's Mother | M44: FEMALE | O44: AFRICAN | Q44: 1 | S44: 0 | W44: SOUTH AFRICAN | Z44: 500 | AD44: 1 | AG44: 500
F45: Sithela | M45: FEMALE | O45: AFRICAN | Q45: 0 | S45: 0 | W45: SOUTH AFRICAN | Z45: 1500 | AD45: 3 | AG45: 4500
F46: Nqelebani | M46: MALE | O46: AFRICAN | Q46: 0 | S46: 0 | W46: SOUTH AFRICAN | Z46: 1200 | AD46: 3 | AG46: 3600
F47: Oarsman 1 | M47: MALE | O47: AFRICAN | Q47: 1 | S47: 0 | W47: SOUTH AFRICAN | Z47: 1600 | AD47: 2 | AG47: 3200
F48: Oarsman 2 | M48: MALE | O48: AFRICAN | Q48: 1 | S48: 0 | W48: SOUTH AFRICAN | Z48: 1600 | AD48: 2 | AG48: 3200
F49: Nyanga | M49: MALE | O49: AFRICAN | S49: 0 | W49: SOUTH AFRICAN | Z49: 3500 | AD49: 3 | AG49: 10500
F50: Ndlovu | M50: MALE | O50: AFRICAN | Q50: 1 | S50: 0 | W50: SOUTH AFRICAN | Z50: 500 | AD50: 1 | AG50: 500
F51: Ndlovu's son | M51: MALE | O51: AFRICAN | Q51: 1 | S51: 0 | W51: SOUTH AFRICAN | Z51: 1500 | AD51: 3 | AG51: 4500
F52: Zakhi's sister | M52: FEMALE | O52: AFRICAN | Q52: 1 | S52: 0 | W52: SOUTH AFRICAN | Z52: 500 | AD52: 1 | AG52: 500
F53: Ndlovu's daughter | M53: FEMALE | O53: AFRICAN | Q53: 1 | S53: 0 | W53: SOUTH AFRICAN | Z53: 500 | AD53: 1 | AG53: =SUM(AG36:AG52) -> 136600
F54: Thonga King | M54: MALE | O54: AFRICAN | Q54: 0 | S54: 0 | W54: SOUTH AFRICAN | Z54: 500 | AD54: 2
F55: Jiyane | M55: MALE | O55: AFRICAN | Q55: 0 | S55: 0 | W55: SOUTH AFRICAN | Z55: 1500 | AD55: 3
F56: Mkabayi | M56: FEMALE | O56: AFRICAN | Q56: 0 | Z56: 0 | AD56: 2
A59: Creative personnel | B59: Sibongile Nene | F59: Writer | M59: Female | O59: AFRICAN | Q59: 0 | S59: 0 | W59: SOUTH AFRICAN | Z59: 1800 | AD59: 9 | AG59: =Z59*AD59 -> 16200
B60: Sibongile Nene | F60: Director | M60: FEMALE | O60: AFRICAN | Q60: 0 | S60: 0 | W60: SOUTH AFRICAN | Z60: 3500 | AD60: 19 | AG60: 66500
B61: Joash Moonsamy | F61: Cinematographer | I61: Camera Operator | M61: MALE | O61: AFRICAN | Q61: 0 | S61: 0 | W61: SOUTH AFRICAN | Z61: 2700 | AD61: 19 | AG61: 51300
B62: Tsepho Movundlela | F62: Editor | M62: MALE | O62: AFRICAN | Q62: 1 | S62: 0 | W62: SOUTH AFRICAN | Z62: 2500 | AD62: 14 | AG62: 35000
B63: Khululiwe Biyela | F63: Costume Designer | M63: FEMALE | O63: AFRICAN | Q63: 1 | S63: 0 | W63: SOUTH AFRICAN | Z63: 1500 | AD63: 19 | AG63: 28500
F64: Make up Artist/ SFX | M64: FEMALE | O64: AFRICAN | Q64: 1 | S64: 0 | W64: SOUTH AFRICAN | Z64: 1800 | AD64: 19 | AG64: 34200
F65: Wardrobe | M65: FEMALE | O65: AFRICAN | Q65: 1 | S65: 0 | W65: SOUTH AFRICAN | Z65: 1800 | AD65: 19 | AG65: 34200
F66: Hair and Makeup | M66: FEMALE | O66: AFRICAN | Q66: 1 | S66: 0 | W66: SOUTH AFRICAN | Z66: 1800 | AD66: 19 | AG66: 34200
F67: Set Designer | M67: MALE | O67: AFRICAN | Q67: 1 | S67: 0 | W67: SOUTH AFRICAN | Z67: 1800 | AD67: 19 | AG67: 34200
B68: Tumelo Lekemo | F68: 1st Assistant Director | AG68: =SUM(AG59:AG67) -> 334300
A87: Crew | B87: Justin Cronje | F87: Focus Puller | I87: Lights technician | M87: male | O87: White | Q87: 1 | S87: 0 | W87: south african | Z87: 1500 | AD87: 19 | AG87: =Z87*AD87 -> 28500
B88: HIRING | F88: Sound Engineer | I88: N/A | M88: male | O88: african | Q88: 1 | S88: 0 | W88: south african | Z88: 1500 | AD88: 19 | AG88: =Z88+AD88 -> 1519
B89: HIRING | F89: Location Manager | I89: N/A | M89: male | O89: african | Q89: 0 | S89: 0 | W89: south african | Z89: 900 | AD89: 19 | AG89: =Z89*AD89 -> 17100
B90: Mondli Ndlela | F90: Location Assistant | I90: N/A | M90: male | O90: african | Q90: 1 | S90: 0 | W90: south african | Z90: 900 | AD90: 19 | AG90: 17100
B91: Thoko Khumalo | F91: Production Manager | I91: N/A | M91: female | O91: african | Q91: 1 | S91: 0 | W91: south african | Z91: 2500 | AD91: 19 | AG91: 47500
B92: HIRING | F92: Production Assistant | I92: N/A | M92: female | O92: african | Q92: 1 | S92: 0 | W92: south african | Z92: 900 | AD92: 19 | AG92: 17100
B93: HIRING | F93: Security and Safety | I93: N/A | M93: female | O93: african | Q93: 0 | S93: 0 | W93: south african | Z93: 900 | AD93: 25 | AG93: 22500
B94: Ntombifuthi Zincume | F94: Catering | I94: Cleaner | M94: female | O94: african | Q94: 1 | S94: 0 | W94: south african | Z94: 900 | AD94: 35 | AG94: 31500
B95: Gugu Khumalo | F95: Catering | I95: Cleaner | M95: female | O95: african | Q95: 1 | S95: 0 | W95: south african | Z95: 900 | AD95: 35 | AG95: 31500
B96: Vilaphile Nene | F96: Catering | I96: Cleaner | M96: female | O96: african | Q96: 1 | S96: 0 | W96: south african | Z96: 900 | AD96: 35 | AG96: =AD96*Z96 -> 31500
AG97: =SUM(AG87:AG96) -> 245819
A133: Extras | B133: 250 young men | F133: Shaka's Warriors | I133: N/A | M133: male | O133: african | Q133: 250 | S133: 0 | W133: south african | Z133: 125000 | AD133: 1 | AG133: 125000
B134: 25 mature women | F134: Shaka's Wives | I134: N/A | M134: female | O134: african | Q134: 25 | S134: 4 | W134: south african | Z134: 50000 | AD134: 1 | AG134: 50000
B135: 10 young women | F135: Shaka's Concubines | I135: N/A | M135: female | O135: african | Q135: 10 | S135: 3 | W135: south african | Z135: 20000 | AD135: 1 | AG135: 20000
B136: 100 cows | F136: Shaka's Livestock | I136: N/A | M136: n/a | O136: african | Q136: 0 | S136: 0 | W136: south african | Z136: 5000 | AD136: 1 | AG136: 5000
B137: 3 young men | F137: Shaka's Guards | I137: N/A | M137: male | O137: african | Q137: 3 | S137: 0 | W137: south african | Z137: 1500 | AD137: 3 | AG137: =Z137*AD137 -> 4500
B138: 50 elders - men | F138: Shaka's councillors | I138: N/A | M138: male | O138: african | Q138: 0 | S138: 3 | W138: south african | Z138: 10000 | AD138: 5 | AG138: =Z138*AD138 -> 50000
B139: 25 Elders - women | F139: Shaka's mothers | I139: N/A | M139: female | O139: african | Q139: 0 | S139: 3 | W139: south african | Z139: 50000 | AD139: 1 | AG139: =Z139*AD139 -> 50000
B140: 5 Females | F140: Thwasas | I140: N/A | M140: female | O140: african | Q140: 5 | S140: 0 | W140: south african | Z140: 1500 | AD140: 2 | AG140: =Z140*AD140 -> 3000
B141: 3 Male | F141: Thwasas | I141: N/A | M141: female | O141: african | Q141: 3 | S141: 0 | W141: south african | Z141: 1500 | AD141: 2 | AG141: =Z141*AD141 -> 3000
B142: Employees as per Service Company | AG142: =SUM(AG133:AG141) -> 310500
B143: Individual Name | F143: Main Role in the Production | G143: Main Role in the Production | I143: Other roles in the Production | M143: Gender | O143: Race | Q143: Youth (i.e. 18yrs to 35yrs) | S143: Disability Status | W143: Citizenship | AA143: Salary { (daily rate) at application or claim stage } | AD143: Duration (Days) | AG143: =AG142+AG97+AG68+AG53 -> 1027219
S144: (i.e. indicate with a yes or no)
B145: Hart Media | F145: Director of Photography | I145: Sound and Camera Equipment | M145: male | O145: african | Q145: 1 | S145: 0 | W145: south african | Z145: 2000 | AD145: 60 | AG145: =Z145*AD145 -> 120000
B146: HIRING | F146: Grader | I146: N/A | M146: male | O146: african | Q146: 1 | S146: 0 | W146: south african | Z146: 1000 | AD146: 18 | AG146: =Z146*AD146 -> 18000
B147: HIRING | F147: Music Designer | I147: N/A | M147: male | O147: african | Q147: 1 | S147: 0 | W147: south african | Z147: 1000 | AD147: 7 | AG147: =Z147*AD147 -> 7000
B148: HIRING | F148: Sound Mixer | I148: N/A | M148: male | O148: african | Q148: 1 | S148: 0 | W148: south african | Z148: 1000 | AD148: 7 | AG148: 7000
B149: HIRING | F149: Assistant Editor | I149: N/A | M149: male | O149: african | Q149: 1 | S149: 0 | W149: south african | Z149: 1000 | AD149: 8 | AG149: 8000
AG150: =SUM(AG145:AG149) -> 160000 | AH150: =AG143+AG150 -> 1187219
A151: Procurement from 51% South African Black-owned entity that have been in operated for atleast one (1) year | B151: (Please provide information with regard to suppliers of goods and services used in this production and indicate how much will be spent per each supplier, as shown on table below. This information will be required at application and claim stage):
B152: Supplier Name | F152: Percentage of Black Ownership | I152: Years in operation | N152: BEE Level | T152: Location | Y152: Type Goods/ Services (specify) | AG152: % of Goods/Services procured locally | AN152: Value of Goods/Services | AT152: % of Foreign Goods/Services
AG153: Total | AJ153: =SUM(AG154:AM179) -> 707050
B154: Noyiphiva Community Hall | F154: 1 | I154: 4 | N154: 1 | T154: Noyiphiva Area, Ntambanana | Y154: livestock | AG154: 13000 | AN154: 130000 | AT154: 0
B155: Khululiwe Biyela | F155: 1 | I155: 5 | N155: 1 | T155: Mayeni Area - Melmoth | Y155: Beadworks | AG155: 25000 | AN155: 120000 | AT155: 0
B156: Noyiphiva Community Hall | F156: 1 | I156: 4 | N156: 1 | T156: Mfule Area, Ntambanana | Y156: Props, Costume, | AG156: 12000 | AN156: 89000
B157: Ndlela Trading PTY LTD | F157: 1 | I157: 5 | N157: 1 | T157: Noyiphiva Area, Ntambanana | Y157: Shooting Location | AG157: 120000 | AN157: 260000 | AT157: 0
B158: Noyiphiva Community Hall | F158: 1 | I158: 4 | N158: 1 | T158: Noyiphiva Area, Ntambanana | Y158: Meals and Accommodation | AG158: 26000 | AN158: 55000 | AT158: 0
B159: Noyiphiva Community Hall | F159: 1 | I159: 4 | N159: 1 | T159: Noyiphiva Area, Ntambanana | Y159: Make up and Hair | AG159: 45000 | AN159: 120000
B160: Noyiphiva Community Hall | F160: 1 | I160: 4 | N160: 1 | T160: Noyiphiva Area, Ntambanana | Y160: Armour, Weapons, Musical Instruments | AG160: 26000 | AN160: 360000
B161: One Globe Community Security Agency | F161: 1 | I161: 3 | N161: 1 | T161: location/ Noyiphiva Mountain | Y161: Shooting Location | AG161: 390000 | AN161: 5.5 | AT161: 0
B162: Hart Media | F162: 1 | I162: 5 | N162: 1 | T162: Durban | Y162: Camera, lighting Equipment, Sound Equipment, Drone Camera | AG162: 50
AG163: 50000 | AN163: 150000
A181: Skills Development | B181: (Please provide the information with regards to skills development taking place in this production as per the table below):
B184: Individual Name | D184: Gender | J184: Race | O184: Entry Level (i.e. matriculant, graduate, production assistant, etc) | V184: Training/skill Provided (e.g. camera operation, directing, acting etc.) | AB184: Duration of Training (days, weeks, months etc.) | AH184: Training Skills level (e.g. NQF level, accreditation ) | AN184: Name of Coach/Mentor | AU184: Previous productions (involved in as per specified training, indicate at claim stage)
B185: Thoko Khumalo | D185: female | J185: african | O185: metric, production Asssistant | V185: Production | AB185: 8 weeks
B186: Fikile Mabaso (Ntombela | D186: female | J186: african | O186: Metric, Location Security | V186: Production Safety and Security | AB186: 8 weeks
B187: Talente Nene | D187: female | J187: african | O187: Grade 11, Lead Actor | V187: Film Performance | AB187: 8 weeks
B188: Ntombifuthi Zincume | D188: female | J188: african | O188: Metric, Catering | V188: Production Caterer | AB188: 8 weeks
A189: Enterprise Development (e.g. securing deals, drawing contracts, set construction) | B189: Costume designer , Set designer, Propsa, Makeup and Hair, Catering - All these areas are contracted to rural entrepreneurs in the area who are skilled at their individual professions on their community level who are now being developed to turn their skills into businesses that can operate within the film industry. The caterers are taught how to quote for film production, account for cashflow and account for expenditures. Each entrepreneur is on contract and is taught the skills to review and amend contracts as per their business and negotiate terms as well as how to pull out of contracts and accountability to contracts. - There are older individuals who are not educated beyond primary or secondary school. They are exposed to a film set for the first time and are taught the skills of location safety, protocol and assist with set design, location scouting and management. They are shown the equipment used to operate a film set and exposed to the crew and their allocated tasks on set.
B191: Enterprise Name | E191: Enterprise Ownership (% Equity) | L191: Location | Q191: Type of development | X191: Name of Coach/Mentor | AE191: Role of Mentor(s) | AK191: Duration of the development | AR191: Value Spend on the development
B192: One Globe Community Security Agency | E192: 1 | L192: Noyiphiva, Melmoth | Q192: Film Studio Development | X192: Sibongile Nene | AE192: INSILA KASHAKA- is the first film set that the community has ever seen. the film production is an epic Shaka story with the potential to raise awareness in just how rich their land, culture, nature, costumes, props and general preserved way of life is to a producer who is looking for that period feel or a nature feel. All the casting will be done in the area, all the costumes and props will come from locals and hair and makeup will be done by locals as well as catering and accommodation will be done in the villages community hall. The rushes, screenings done nightly of what has been shot in the day will be screened nightly in the community hall for all to experience. The overall set construction, clearing and design will be set by the local men who will recreate Shaka's arena and women will populate the set with utensils, props and costumes which they traditionally know belong in a king's home. The empowerment to actors who will be on camera for the first time, acting for the first time and watching the crew in progress for the first time is priceless. To empower residents of Noyiphiva Area and gain an understanding of the value of their location to a film Producer and to develop themselves to be ready to negotiate with producers for location hire, costume and props crafting, manage locations, provide catering to set, provide accommodation and meals for crew and to understand the business of film production well enough to hold their own when film productions scout in their area. | AK192: 8 weeks | AR192: 500000
B193: Ndlela Trading PTY LTD | E193: 100 | L193: Noyiphiva, Melmoth | Q193: Location Hire | X193: Ayanda Ndlela | AE193: The Ndlela family will be availing their undeveloped rural property to the production to create the set of INSILA KASHAKA. The family have never experienced this before and they shall be the first to illustrate to the other families what it is like to have a film production use your land and create a film. | AK193: 8 weeks
A196: Social Responsibility | B196: (Information to be included here should be related to social responsibility with regards to this production. Details of goods used during this production and donated to the community):
C197: Name of recipient | P197: Goods and/or Services | AF197: Value | AS197: Reason for choosing this particular recipient
AF198: (purchase price of goods or costs of service rendered)
C199: Noyiphiva Community Hall | P199: Library - 500 Books, bookshelves, tables and 5 PC'S | AF199: 126000 | AS199: Building a film studio in this rural area with the aim to employ locally. The community Hall is the entire community, for everyone who lives in this rural community to partake in and share.
C200: Noyiphiva Community Hall | P200: Period Props, Costume and Set- Design and Craft | AF200: 56000 | AS200: Building a film studio in this rural area with the aim to employ locally. The community Hall is the entire community, for everyone who lives in this rural community to partake in and share.
C201: Ndlela Family | P201: landscaping and fencing | AF201: 380000 | AS201: The Ndlela property is a wild property which the family has been meaning to develop. When the set is constructed on this piece of their land, it will be left for the family to continue using as a set and a continued possibility of rental to other film productions
